fUSD/lending_fUSD_20240718
["ID","MTS","AMOUNT","RATE_DAILY","PERIOD"]
[332574877,1721303435103,-151.0,0.000295,4]
[332574878,1721303435112,-732.11794669,0.00029572,2]
[332574879,1721303435121,-156.65385581,0.00029702,2]
[332574880,1721303435131,-399.82497509,0.00029716,2]
[332574881,1721303435140,-154.98095524,0.00029738,2]
[332574882,1721303435149,-399.82497509,0.00029865,2]
[332574883,1721303435160,-160.96479367,0.0002987,2]
[332574884,1721303435169,-732.11794669,0.00029937,2]
[332574885,1721303435179,-150.0,0.0003,2]
[332574886,1721303435189,-309.029,0.0003003,2]
[332574887,1721303435198,-161.35093905,0.00030106,7]
[332574888,1721303435207,-166.66666666,0.00030199,7]
[332574889,1721303435217,-179.75956162,0.00030254,7]
[332574890,1721303435226,-163.09818702,0.00030381,7]
[332574891,1721303435236,-163.09818702,0.00030492,7]
[332574892,1721303435245,-155.85175389,0.00030495,7]
[332574893,1721303435254,-157.03911617,0.00030542,7]
[332574894,1721303435263,-152.91136507,0.00030591,7]
[332574895,1721303435273,-226.3,0.00030651,2]
[332574896,1721303435282,-167.0,0.00030721,2]
[332574897,1721303435293,-155.85175389,0.00030771,7]
[332574898,1721303435317,-152.91136507,0.00030776,7]
[332574899,1721303435333,-154.66033317,0.00030793,7]
[332574900,1721303435351,-399.82497509,0.00030827,7]
[332574901,1721303435372,-399.82497509,0.00030849,7]
[332574902,1721303435393,-151.0,0.00030873,4]
[332574903,1721303435411,-154.98095524,0.00031059,7]
[332574904,1721303435427,-200.06894591,0.0003114,7]
[332574905,1721303435443,-732.11794669,0.00031263,7]
[332574906,1721303435462,-161.35093905,0.00031374,7]
[332574907,1721303435482,-399.82497509,0.00031406,7]
[332574908,1721303435497,-200.06894591,0.00031464,7]
[332574909,1721303435514,-399.82497509,0.00031469,7]
[332574910,1721303435531,-153.50621038,0.00031521,7]
[332574911,1721303435548,-326.37243674,0.00031558,7]
[332574912,1721303435561,-166.66666666,0.00031622,7]
[332574913,1721303435576,-732.11794669,0.00031692,7]
[332574914,1721303435591,-160.96479367,0.00031917,7]
[332574915,1721303435607,-155.85175389,0.00031984,7]
[332574916,1721303435630,-163.09818702,0.00032036,7]
[332574917,1721303435644,-166.66666667,0.0003213,7]
[332574918,1721303435659,-157.03911617,0.00032192,7]
[332574919,1721303435674,-151.0,0.00032246,5]
[332574920,1721303435689,-233.191,0.00032252,2]
[332574921,1721303435705,-809.0,0.00032252,2]
[332574922,1721303435720,-765.353,0.00032252,2]
[332574923,1721303435735,-150.42,0.00032252,2]
[332574924,1721303435750,-550.377,0.00032252,2]
[332574925,1721303435766,-2431.815,0.00032252,2]
[332574926,1721303435781,-2125.231,0.00032252,2]
[332574927,1721303435796,-3242.751,0.00032252,2]
[332574928,1721303435812,-228.584,0.00032252,2]
[332574929,1721303435827,-165.92612166,0.00032256,7]
[332574930,1721303435841,-399.82497509,0.00032318,7]
[332574931,1721303435855,-163.09818702,0.0003233,7]
[332574932,1721303435870,-309.029,0.0003236,2]
[332574933,1721303435886,-732.11794669,0.00032373,7]
[332574934,1721303435900,-153.50621038,0.000324,7]
[332574935,1721303435915,-166.66666666,0.0003251,7]
[332574936,1721303435930,-154.98095524,0.0003256,7]
[332574937,1721303435949,-169.35308735,0.00032565,7]
[332574938,1721303435964,-732.11794669,0.00032671,7]
[332574939,1721303435980,-300.0,0.00032684,2]
[332574940,1721303435994,-163.09818702,0.00032688,7]
[332574941,1721303436009,-200.06894591,0.00032736,7]
[332574942,1721303436026,-150.0,0.00032805,2]
[332574943,1721303436040,-152.91136507,0.00032865,7]
[332574944,1721303436055,-157.49799235,0.00032883,7]
[332574945,1721303436070,-200.0,0.000329,2]
[332574946,1721303436085,-383.0,0.000329,2]
[332574947,1721303436099,-226.3,0.00032915,2]
[332574948,1721303436114,-150.0,0.00032915,2]
[332574949,1721303436129,-637.617621,0.00033,14]
[332574950,1721303436145,-732.11794669,0.0003304,7]
[332574951,1721303436163,-200.06894591,0.00033061,7]
[332574952,1721303436178,-150.0,0.00033074,2]
[332574953,1721303436192,-399.82497509,0.00033106,7]
[332574954,1721303436207,-200.06894591,0.00033111,7]
[332574955,1721303436222,-292.69,0.00033151,120]
[332574956,1721303436236,-326.37243674,0.0003316,7]
[332574957,1721303436252,-150.0,0.00033171,2]
[332574958,1721303436268,-157.03911617,0.00033195,7]
[332574959,1721303436283,-155.85175389,0.0003323,7]
[332574960,1721303436299,-200.06894591,0.00033274,7]
[332574961,1721303436313,-157.49799235,0.00033302,7]
[332574962,1721303436329,-157.03911617,0.00033313,7]
[332574963,1721303436345,-399.82497509,0.00033337,7]
[332574964,1721303436360,-150.0,0.00033343,2]
[332574965,1721303436375,-153.50621038,0.00033356,7]
[332574966,1721303436392,-150.0,0.00033357,2]
[332574967,1721303436410,-160.96479367,0.0003336,7]
[332574968,1721303436424,-150.0,0.0003337,2]
[332574969,1721303436439,-152.91136507,0.00033385,7]
[332574970,1721303436453,-150.0,0.00033405,2]
[332574971,1721303436468,-153.50621038,0.00033419,7]
[332574972,1721303436484,-150.0,0.00033435,2]
[332574973,1721303436498,-150.0,0.00033497,2]
[332574974,1721303436513,-150.0,0.00033527,2]
[332574975,1721303436528,-166.66666666,0.00033544,7]
[332574976,1721303436544,-160.96479367,0.00033554,7]
[332574977,1721303436559,-150.0,0.00033579,2]
[332574978,1721303436575,-150.0,0.00033582,2]
[332574979,1721303436591,-166.66666666,0.00033599,7]
[332574980,1721303436607,-151.0,0.00033619,6]
[332574981,1721303436623,-150.0,0.00033651,2]
[332574982,1721303436637,-154.98095524,0.00033665,7]
[332574983,1721303436652,-163.09818702,0.00033665,7]
[332574984,1721303436669,-208.15400611,0.00033667,2]
[332574985,1721303436684,-152.91136507,0.00033675,7]
[332574986,1721303436700,-150.0,0.00033693,2]
[332574987,1721303436715,-150.0,0.00033693,2]
[332574988,1721303436733,-732.11794669,0.00033738,7]
[332574989,1721303436748,-150.0,0.0003378,2]
[332574990,1721303436763,-153.50621038,0.00033799,7]
[332574991,1721303436779,-150.0,0.00033842,2]
[332574992,1721303436793,-200.06894591,0.00033862,7]
[332574993,1721303436808,-166.66666666,0.0003387,7]
[332574994,1721303436823,-150.0,0.00033882,2]
[332574995,1721303436839,-279.97,0.00033921,120]
[332574996,1721303436853,-153.50621038,0.00033971,7]
[332574997,1721303436869,-157.03911617,0.00033985,7]
[332574998,1721303436885,-150.0,0.00034047,2]
[332574999,1721303436900,-150.0,0.00034136,2]
[332575000,1721303436919,-150.0,0.00034159,2]
[332575001,1721303436935,-150.0,0.00034179,2]
[332575002,1721303436956,-150.0,0.00034215,2]
[332575003,1721303436970,-150.0,0.00034239,2]
[332575004,1721303436986,-1249.87,0.00034246,60]
[332575005,1721303437001,-644.82,0.00034246,60]
[332575006,1721303437018,-150.0,0.00034252,2]
[332575007,1721303437034,-732.11794669,0.00034269,7]
[332575008,1721303437049,-150.0,0.00034285,2]
[332575009,1721303437063,-173.0802734,0.00034299,4]
[332575010,1721303437077,-150.0,0.00034336,2]
[332575011,1721303437091,-154.98095524,0.0003435,7]
[332575012,1721303437106,-529.43,0.00034357,2]
[332575013,1721303437120,-150.0,0.00034396,2]
[332575014,1721303437135,-150.0,0.00034404,2]
[332575015,1721303437151,-150.0,0.00034413,2]
[332575016,1721303437171,-150.0,0.00034458,2]
[332575017,1721303437184,-150.0,0.00034496,2]
[332575018,1721303437200,-3000.0,0.0003451,2]
[332575019,1721303437215,-2500.0,0.00034515,2]
[332575020,1721303437229,-1249.87,0.0003452,62]
[332575021,1721303437239,-644.82,0.0003452,62]
[332575022,1721303437248,-150.0,0.00034548,10]
[332575023,1721303437260,-399.82497509,0.00034576,7]
[332575024,1721303437269,-166.66666667,0.0003458,7]
[332575025,1721303437279,-200.06894591,0.00034592,7]
[332575026,1721303437289,-200.06894591,0.00034593,7]
[332575027,1721303437301,-342.18189299,0.00034595,2]
[332575028,1721303437311,-2736.52376704,0.00034598,25]
[332575029,1721303437321,-2544.2253,0.000346,2]
[332575030,1721303437331,-418.86,0.00034603,2]
[332575031,1721303437711,-862.08,0.00034603,2]
[332575032,1721303437754,-832.97,0.00034603,2]
[332575033,1721303437777,-832.97,0.00034603,2]
[332575034,1721303437787,-150.0,0.00034659,2]
[332575035,1721303437796,-8185.6057,0.000347,2]
[332575036,1721303437805,-228901.76636967,0.000347,2]
[332575037,1721303437815,-399.82497509,0.00034718,7]
[332575038,1721303437823,-500.0,0.0003472,10]
[332575039,1721303437833,-2615.0,0.0003478,33]
[332575040,1721303437843,-179.21478104,0.00034785,2]
[332575041,1721303437852,-505.0,0.0003479,2]
[332575042,1721303437864,-1249.87,0.00034794,64]
[332575043,1721303437873,-644.82,0.00034794,64]
[332575044,1721303437882,-153.68776239,0.00034795,8]
[332575045,1721303437891,-1000.0,0.00034799,30]
[332575046,1721303437900,-1000.0,0.00034799,30]
[332575047,1721303437910,-1000.0,0.00034799,30]
[332575049,1721303437920,-470.50631138,0.00034799,30]
[332575050,1721303437929,-63022.93704057,0.000348,2]
[332575053,1721303438615,-18350.37025943,0.000348,2]
[332575054,1721303438624,-1797.8025,0.000348,2]
[332575055,1721303438634,-13256.8447,0.000348,2]
[332575056,1721303438643,-399.82497509,0.000348,7]
[332575057,1721303438652,-399.82497509,0.00034811,7]
[332575058,1721303438662,-150.0,0.00034833,2]
[332575059,1721303438671,-179.21478102,0.00034843,2]
[332575060,1721303438681,-326.37243674,0.00034844,7]
[332575061,1721303438690,-557.0,0.00034853,5]
[332575062,1721303438700,-153.50621038,0.00034859,7]
[332575063,1721303438711,-191.3878521,0.00034867,4]
[332575064,1721303438720,-768.63792205,0.00034867,4]
[332575065,1721303438729,-2000.0,0.00034867,2]
[332575066,1721303438738,-200.0,0.00034867,2]
[332575067,1721303438747,-2000.0,0.00034867,2]
[332575068,1721303438755,-200.0,0.00034867,2]
[332575069,1721303438765,-500.0,0.00034867,2]
[332575070,1721303438774,-2000.0,0.00034867,2]
[332575071,1721303438783,-200.0,0.00034867,2]
[332575072,1721303438792,-2000.0,0.00034867,2]
[332575073,1721303438801,-200.0,0.00034867,2]
[332575074,1721303438810,-179.3242055,0.0003487,2]
[332575075,1721303438819,-165.16,0.00034877,2]
[332575076,1721303438828,-151.16,0.00034877,2]
[332575077,1721303438837,-150.0,0.00034877,2]
[332575078,1721303438846,-529.3,0.00034877,2]
[332575079,1721303438855,-355.49,0.00034877,2]
[332575080,1721303438865,-150.0,0.00034877,2]
[332575081,1721303438874,-425.12,0.00034877,2]
[332575082,1721303438884,-529.43,0.00034877,2]
[332575083,1721303438893,-425.12,0.00034877,2]
[332575084,1721303438902,-150.0,0.00034877,2]
[332575085,1721303438912,-165.16,0.00034877,2]
[332575086,1721303438921,-150.0,0.00034877,2]
[332575087,1721303438930,-150.0,0.00034877,2]
[332575088,1721303438946,-425.12,0.00034877,2]
[332575089,1721303438956,-165.16,0.00034877,2]
[332575090,1721303438965,-355.49,0.00034877,2]
[332575091,1721303438974,-150.0,0.00034877,2]
[332575092,1721303438984,-529.04,0.00034877,2]
[332575093,1721303438993,-150.0,0.00034877,2]
[332575094,1721303439004,-165.16,0.00034877,2]
[332575095,1721303439014,-355.22,0.00034877,2]
[332575096,1721303439026,-150.0,0.00034877,2]
[332575097,1721303439037,-425.12,0.00034877,2]
[332575098,1721303439046,-150.0,0.00034877,2]
[332575099,1721303439055,-165.16,0.00034877,2]
[332575100,1721303439064,-150.0,0.00034877,2]
[332575101,1721303439073,-150.0,0.00034877,2]
[332575102,1721303439082,-425.12,0.00034877,2]
[332575103,1721303439091,-355.49,0.00034877,2]
[332575104,1721303439099,-529.43,0.00034877,2]
[332575105,1721303439109,-425.12,0.00034877,2]
[332575106,1721303439118,-150.0,0.00034877,2]
[332575107,1721303439128,-355.49,0.00034877,2]
[332575108,1721303439137,-150.0,0.00034877,2]
[332575109,1721303439146,-164.92,0.00034877,2]
[332575110,1721303439155,-150.0,0.00034877,2]
[332575111,1721303439165,-165.16,0.00034877,2]
[332575112,1721303439175,-529.43,0.00034877,2]
[332575113,1721303439184,-150.0,0.00034877,2]
[332575114,1721303439193,-425.12,0.00034877,2]
[332575115,1721303439202,-529.43,0.00034877,2]
[332575116,1721303439211,-425.12,0.00034877,2]
[332575117,1721303439220,-165.16,0.00034877,2]
[332575118,1721303439229,-150.0,0.00034877,2]
[332575119,1721303439238,-150.0,0.00034877,2]
[332575120,1721303439247,-425.12,0.00034877,2]
[332575121,1721303439256,-150.0,0.00034877,2]
[332575122,1721303439267,-165.16,0.00034877,2]
[332575123,1721303439276,-150.0,0.00034877,2]
[332575124,1721303439286,-425.12,0.00034877,2]
[332575125,1721303439296,-308.24,0.00034877,2]
[332575126,1721303439305,-425.12,0.00034877,2]
[332575127,1721303439315,-425.12,0.00034877,2]
[332575128,1721303439324,-425.12,0.00034877,2]
[332575129,1721303439333,-425.12,0.00034877,2]
[332575130,1721303439342,-850.17,0.00034877,2]
[332575131,1721303439351,-74902.39314631,0.0003488,2]
[332575132,1721303439360,-511.12,0.00034885,2]
[332575133,1721303439370,-380.0,0.00034888,2]
[332575134,1721303439379,-85118.44532591,0.00034895,2]
[332575135,1721303439391,-1111.46103322,0.00034895,2]
[332575136,1721303439420,-460.43123519,0.00034895,2]
[332575137,1721303439431,-658.25,0.00034895,2]
[332575138,1721303439442,-943.09082566,0.00034895,2]
[332575139,1721303439462,-51515.58237958,0.00034895,2]
[332575140,1721303439473,-1470.68680044,0.00034895,2]
[332575141,1721303439482,-500.0,0.00034895,2]
[332575142,1721303439492,-380.0,0.00034898,2]
[332575143,1721303439503,-7932.40590668,0.000349,2]
[332575144,1721303439515,-16752.10496832,0.000349,2]
[332575145,1721303439525,-216.0,0.000349,2]
[332575146,1721303439535,-164.77839754,0.000349,2]
[332575147,1721303439546,-1000.0,0.000349,2]
[332575148,1721303439555,-347.97105986,0.000349,7]
[332575149,1721303439564,-179.21478102,0.000349,2]
[332575150,1721303439574,-157.42110163,0.000349,2]
[332575151,1721303439583,-153.68776239,0.000349,8]
[332575152,1721303439592,-169.68125885,0.000349,2]
[332575153,1721303439601,-2129.44296794,0.000349,2]
[332575154,1721303439612,-9271.8760512,0.000349,2]
[332575155,1721303439621,-476.18773152,0.000349,2]
[332575156,1721303439630,-380.0,0.00034903,2]
[332575157,1721303439639,-380.0,0.00034906,2]
[332575158,1721303439649,-380.0,0.00034907,2]
[332575159,1721303439658,-1000.0,0.00034909,30]
[332575160,1721303439668,-380.0,0.00034919,2]
[332575161,1721303439677,-152.0,0.00034928,7]
[332575162,1721303439687,-179.3242055,0.0003499,2]
[332575163,1721303439696,-179.3242055,0.0003499,2]
[332575164,1721303439705,-151.0,0.00034992,7]
[332575165,1721303439714,-30895.5012098,0.00034994,2]
[332575166,1721303439723,-838.53437194,0.00034994,2]
[332575167,1721303439733,-10739.1143911,0.00034994,2]
[332575168,1721303439747,-32980.41639929,0.00034994,2]
[332575169,1721303439776,-7823.73689433,0.00034994,2]
[332575170,1721303439787,-301.2900896,0.00034994,2]
[332575171,1721303439830,-8980.97957088,0.00034994,2]
[332575172,1721303439932,-4228.0863352,0.00034994,2]
[332575205,1721303443761,-609.04084905,0.000318,2]
[332575206,1721303443773,-390.95915095,0.000318,2]
[332575207,1721303443784,-329.42526195,0.000347,2]
[332575208,1721303443794,-156.22539765,0.00034892,2]
[332575209,1721303443804,-1207.42292695,0.00034994,2]
[332575210,1721303443816,-302.22118095,0.00034994,2]
[332575211,1721303443826,-609.62886541,0.00034996,2]
[332575212,1721303443835,-1247.13316268,0.00034996,2]
[332575213,1721303443868,-670.86660603,0.00034996,2]
[332575214,1721303443880,-789.68214541,0.00034996,2]
[332575215,1721303445126,-605.12307358,0.00034996,2]
[332575216,1721303445137,-1249.8031812,0.00034997,2]
[332575217,1721303445149,-300.0,0.00034999,10]
[332575218,1721303445160,-301.5978867,0.00034999,10]
[332575219,1721303445170,-150.0,0.00034999,30]
[332575220,1721303445180,-150.0,0.00034999,30]
[332575221,1721303445190,-150.0,0.00034999,30]
[332575222,1721303445199,-150.0,0.00034999,30]
[332575223,1721303445209,-150.0,0.00034999,30]
[332575224,1721303445220,-150.0,0.00034999,30]
[332575225,1721303445230,-150.0,0.00034999,30]
[332575226,1721303445240,-150.0,0.00034999,30]
[332575227,1721303445249,-150.0,0.00034999,30]
[332575228,1721303445261,-150.0,0.00034999,30]
[332575229,1721303445271,-150.0,0.00034999,30]
[332575230,1721303445283,-150.0,0.00034999,30]
[332575231,1721303445295,-150.0,0.00034999,30]
[332575232,1721303445306,-150.0,0.00034999,30]
[332575233,1721303445317,-150.0,0.00034999,30]
[332575234,1721303445328,-150.0,0.00034999,30]
[332575235,1721303445340,-150.0,0.00034999,30]
[332575236,1721303445350,-150.0,0.00034999,30]
[332575237,1721303445362,-150.0,0.00034999,30]
[332575238,1721303445372,-150.0,0.00034999,30]
[332575239,1721303445383,-150.0,0.00034999,30]
[332575240,1721303445392,-150.0,0.00034999,30]
[332575241,1721303445402,-127.43063676,0.00034999,30]
[332575242,1721303445417,-22.56936324,0.00034999,30]
[332575243,1721303445427,-150.0,0.00034999,30]
[332575244,1721303445436,-150.0,0.00034999,30]
[332575245,1721303445445,-150.0,0.00034999,30]
[332575246,1721303445455,-150.0,0.00034999,30]
[332575247,1721303445464,-150.0,0.00034999,30]
[332575248,1721303445473,-61.73548432,0.00034999,30]
[332575249,1721303445485,-88.26451568,0.00034999,30]
[332575250,1721303445495,-150.0,0.00034999,30]
[332575251,1721303445504,-150.0,0.00034999,30]
[332575252,1721303445514,-150.0,0.00034999,30]
[332575253,1721303445524,-136.84778432,0.00034999,30]
[332575254,1721303445536,-13.15221568,0.00034999,30]
[332575255,1721303445546,-150.0,0.00034999,30]
[332575256,1721303445556,-150.0,0.00034999,30]
[332575257,1721303445565,-150.0,0.00034999,30]
[332575258,1721303445576,-150.0,0.00034999,30]
[332575259,1721303445585,-150.0,0.00034999,30]
[332575260,1721303445596,-150.0,0.00034999,30]
[332575261,1721303445605,-150.0,0.00034999,30]
[332575262,1721303445614,-167.38284568,0.00034999,2]
[332575263,1721303445624,-2309.54261473,0.00034999,2]
[332575264,1721303445635,-902.16144431,0.00034999,2]
[332575265,1721303445647,-939.63137312,0.00034999,2]
[332575267,1721303446024,-505.53116172,0.00034999,2]
[332575268,1721303446035,-1280.57448702,0.00034999,2]
[332575269,1721303446044,-860.68279375,0.00034999,2]
[332575270,1721303446055,-54.97720625,0.00034999,2]
[332575271,1721303446065,-150.0,0.00034999,2]
[332575272,1721303446074,-300.0,0.00034999,2]
[332575273,1721303446083,-450.0,0.00034999,2]
[332575274,1721303446092,-600.0,0.00034999,2]
[332575275,1721303446102,-636.31148006,0.00034999,2]
[332575277,1721303447061,-113.68851994,0.00034999,2]
[332575278,1721303447071,-900.0,0.00034999,2]
[332575279,1721303447083,-1050.0,0.00034999,2]
[332575280,1721303447093,-1200.0,0.00034999,2]
[332575281,1721303447103,-802.14251487,0.00034999,2]
[332575282,1721303447117,-547.85748513,0.00034999,2]
[332575283,1721303447126,-922.4984284,0.00034999,2]
[332575284,1721303447138,-171.3969007,0.00035,2]
[332575285,1721303447149,-72.84998468,0.00035,2]
[332575286,1721303447158,-237.14813123,0.00035,2]
[332575287,1721303447167,-158.09875415,0.00035,2]
[332575288,1721303447177,-1291.2557162,0.00035,2]
[332575289,1721303447186,-405.2527855,0.00035,2]
[332575290,1721303447197,-5857.2056216,0.00035,2]
[332575291,1721303447212,-2729.88323407,0.00035,2]
[332575292,1721303447222,-468903.16587888,0.00035,21]
[332575293,1721303447233,-45948.158299,0.00035,21]
[332575294,1721303447243,-380.81889414,0.00035,2]
[332575295,1721303447252,-12170.42883586,0.00035,10]
[332575296,1721303447264,-11550.0,0.00035,10]
[332575297,1721303449959,-503.0,0.00034897,5]
[332575298,1721303449969,-841.64592525,0.00035,10]
[332575299,1721303449980,-621.8199186,0.00035,10]
[332575300,1721303450108,-5874.03828513,0.00035,10]
[332575301,1721303450122,-18428.0872885,0.00035,10]
[332575302,1721303450157,-675.544915,0.00035,10]
[332575305,1721304139016,223.97,0.00024932,120]
[332575319,1721304631340,-227.41308538,0.00014567,2]
[332575320,1721304631350,-329.35655342,0.00014567,2]
[332575321,1721304631362,-245.03282195,0.00014567,2]
[332575323,1721304631374,-240.9401014,0.00014567,2]
[332575325,1721304631383,-300.0,0.00014567,2]
[332575326,1721304631394,-202.81794501,0.00014567,2]
[332575327,1721304631404,-1994.47996395,0.00014569,2]
[332575328,1721304631504,-7963.50354425,0.00014569,2]
[332575329,1721304631515,-150.0,0.00015,2]
[332575330,1721304631526,-1363.07270018,0.00015707,2]
[332575331,1721304631535,-200.0,0.00017,2]
[332575332,1721304631545,-166.66666667,0.000181,2]
[332575333,1721304631555,-152.91136508,0.00018194,2]
[332575334,1721304631564,-499.99,0.00018449,2]
[332575335,1721304631574,-150.99,0.00018449,2]
[332575336,1721304631584,-156.45325113,0.00018497,2]
[332575337,1721304631593,-156.45325113,0.00018517,2]
[332575338,1721304631602,-153.50621038,0.00018572,2]
[332575339,1721304631611,-166.66666666,0.00018734,2]
[332575340,1721304631623,-156.0911654,0.00018811,2]
[332575341,1721304631633,-156.45325113,0.00018852,2]
[332575342,1721304631643,-166.66666666,0.00018948,2]
[332575343,1721304631652,-292.84717868,0.00018994,2]
[332575344,1721304631664,-177.02802385,0.00019,2]
[332575345,1721304631673,-250.0,0.00019,2]
[332575346,1721304631684,-156.0911654,0.00019026,2]
[332575347,1721304631693,-153.50621038,0.00019123,2]
[332575348,1721304631702,-153.89918918,0.00019185,2]
[332575349,1721304631712,-153.54583878,0.00019283,2]
[332575351,1721304631722,-292.84717868,0.00019312,2]
[332575353,1721304631732,-151.42828929,0.00019331,2]
[332575355,1721304631741,-292.84717868,0.0001951,2]
[332575357,1721304631751,-157.03911617,0.0001992,2]
[332575358,1721304631762,-151.63,0.00019987,2]
[332575360,1721304631772,-2000.0,0.0002,2]
[332575362,1721304631781,-3249.43960449,0.0002,2]
[332575363,1721304631791,-2000.0,0.0002001,2]
[332575364,1721304631801,-2000.0,0.0002002,2]
[332575365,1721304631811,-2370.205005,0.0002003,2]
[332575366,1721304631820,-152.22497455,0.00020143,2]
[332575367,1721304631830,-153.54583878,0.00020177,2]
[332575368,1721304631840,-152.22497455,0.00020234,2]
[332575369,1721304631850,-156.45325113,0.00020272,2]
[332575370,1721304631859,-156.0911654,0.00020302,2]
[332575371,1721304631869,-166.66666666,0.00020361,2]
[332575372,1721304631879,-153.89918918,0.00020379,2]
[332575373,1721304631888,-251.98,0.00020593,2]
[332575374,1721304631897,-152.22497455,0.00020702,2]
[332575375,1721304631907,-292.84717868,0.00020922,2]
[332575376,1721304631917,-292.84717868,0.00020961,2]
[332575377,1721304631927,-300.0,0.00021,2]
[332575378,1721304631936,-153.54583878,0.00021059,2]
[332575379,1721304631946,-3075.4,0.00021141,2]
[332575380,1721304631957,-152.22497455,0.00021157,2]
[332575381,1721304631966,-189.92,0.00021282,2]
[332575382,1721304631976,-15067.34,0.00021293,2]
[332575383,1721304631986,-160.96479367,0.00021295,2]
[332575384,1721304631996,-2551.54,0.00021344,2]
[332575385,1721304632005,-350.3,0.00021388,2]
[332575386,1721304632015,-250.0,0.00021401,2]
[332575387,1721304632024,-153.50621038,0.00021618,2]
[332575388,1721304632033,-367.02,0.00021644,2]
[332575389,1721304632043,-1504.14,0.00021733,2]
[332575390,1721304632053,-168.66562532,0.00021863,2]
[332575391,1721304632062,-156.45325113,0.00021895,2]
[332575392,1721304632072,-195.12,0.00021918,2]
[332575393,1721304632082,-794.18797398,0.00022,2]
[332575394,1721304632091,-166.66666667,0.00022091,2]
[332575395,1721304632101,-153.89918918,0.000221,2]
[332575396,1721304632111,-223.97,0.00022161,2]
[332575397,1721304632121,-1973.02,0.00022232,2]
[332575398,1721304632130,-151.63,0.0002225,2]
[332575399,1721304632139,-160.96479367,0.00022251,2]
[332575400,1721304632149,-156.65385581,0.00022254,2]
[332575401,1721304632159,-156.45325113,0.00022303,2]
[332575402,1721304632168,-292.84717868,0.00022307,2]
[332575403,1721304632178,-160.96479367,0.00022457,2]
[332575404,1721304632187,-1000.0,0.00022557,2]
[332575405,1721304632197,-153.54583878,0.00022627,2]
[332575406,1721304632206,-153.89918918,0.00022671,2]
[332575407,1721304632215,-153.54583878,0.00022683,2]
[332575408,1721304632226,-200.01,0.0002281,2]
[332575409,1721304632235,-292.84717868,0.00022906,2]
[332575410,1721304632245,-350.0,0.00023,2]
[332575411,1721304632255,-292.84717868,0.00023013,2]
[332575412,1721304632264,-166.66666666,0.00023149,2]
[332575413,1721304632275,-156.0911654,0.00023492,2]
[332575414,1721304632286,-153.89918918,0.00023493,2]
[332575415,1721304632296,-186.77256119,0.00023551,2]
[332575416,1721304632307,-152.22497455,0.00023678,2]
[332575417,1721304632322,-292.84717868,0.0002368,2]
[332575418,1721304632332,-180.0,0.00023755,2]
[332575419,1721304632342,-156.45325113,0.00023922,2]
[332575420,1721304632353,-152.22497455,0.00024004,2]
[332575421,1721304632363,-156.65385583,0.00024041,2]
[332575422,1721304632373,-350.3,0.00024061,2]
[332575423,1721304632384,-160.96479367,0.00024067,2]
[332575424,1721304632396,-156.0911654,0.00024234,2]
[332575425,1721304632405,-153.50621038,0.00024328,2]
[332575426,1721304632415,-1054.78546131,0.00024374,2]
[332575427,1721304632424,-156.45325113,0.00024405,2]
[332575428,1721304632434,-151.63,0.00024514,2]
[332575429,1721304632444,-170.14,0.00024754,2]
[332575430,1721304632454,-292.84717868,0.00024914,2]
[332575431,1721304632463,-167.60243727,0.00024932,2]
[332575432,1721304632473,-150.18315017,0.00025062,2]
[332575433,1721304632483,-153.54583878,0.00025091,2]
[332575434,1721304632493,-153.50621038,0.00025343,2]
[332575435,1721304632503,-1000.0,0.00025377,2]
[332575436,1721304632512,-153.89918918,0.00025462,2]